[Event "Early-Titled-Tuesday-Blitz-January-30-2024"]
[Site "Chess.com"]
[Date "2024.01.30"]
[Round "5"]
[White "ChainedDowntohell"]
[Black "FlemingA"]
[Result "1/2-1/2"]
[WhiteElo "2588"]
[BlackElo "2444"]
[TimeControl "180+1"]
[EndTime "8:57:25 PST"]
[Termination "Game drawn by repetition"]

1. d4 {[%clk 0:03:00.9]} 1... Nf6 {[%clk 0:02:54.9]} 2. c4 {[%clk 0:02:59.9]}
2... c5 {[%clk 0:02:53.9]} 3. d5 {[%clk 0:02:59.5]} 3... b5 {[%clk 0:02:54]} 4.
Nd2 {[%clk 0:02:55.1]} 4... g6 {[%clk 0:02:40]} 5. e4 {[%clk 0:02:54.3]} 5... d6
{[%clk 0:02:40.2]} 6. Ngf3 {[%clk 0:02:50.6]} 6... Bg7 {[%clk 0:02:39.7]} 7. Bd3
{[%clk 0:02:41.7]} 7... O-O {[%clk 0:02:39.5]} 8. O-O {[%clk 0:02:40.6]} 8...
Nbd7 {[%clk 0:02:29]} 9. Re1 {[%clk 0:02:36.5]} 9... Ng4 {[%clk 0:02:18.5]} 10.
cxb5 {[%clk 0:02:29.3]} 10... a6 {[%clk 0:02:14.6]} 11. bxa6 {[%clk 0:02:23.1]}
11... Bxa6 {[%clk 0:02:00.7]} 12. Bxa6 {[%clk 0:02:22.6]} 12... Rxa6 {[%clk
0:02:01.6]} 13. Nc4 {[%clk 0:02:21.5]} 13... Qa8 {[%clk 0:01:51.9]} 14. a4
{[%clk 0:02:04.8]} 14... Nge5 {[%clk 0:01:43.3]} 15. Nfxe5 {[%clk 0:02:02.2]}
15... Nxe5 {[%clk 0:01:44.2]} 16. Nxe5 {[%clk 0:01:53.6]} 16... Bxe5 {[%clk
0:01:45.1]} 17. Qc2 {[%clk 0:01:40.5]} 17... Rb8 {[%clk 0:01:42.3]} 18. Ra3
{[%clk 0:01:33.7]} 18... Qb7 {[%clk 0:01:03.4]} 19. Ree3 {[%clk 0:00:59.1]}
19... Rb6 {[%clk 0:00:50.8]} 20. a5 {[%clk 0:00:56.3]} 20... Rb4 {[%clk
0:00:45.1]} 21. a6 {[%clk 0:00:53.6]} 21... Qa7 {[%clk 0:00:42.4]} 22. Ra2
{[%clk 0:00:27.6]} 22... Bf4 {[%clk 0:00:21.5]} 23. Re2 {[%clk 0:00:15]} 23...
Be5 {[%clk 0:00:13.3]} 24. Re3 {[%clk 0:00:13.2]} 24... Bf4 {[%clk 0:00:13.6]}
25. Re1 {[%clk 0:00:12.6]} 25... Be5 {[%clk 0:00:13.1]} 26. Re3 {[%clk
0:00:02.6]} 1/2-1/2

[Event "Early-Titled-Tuesday-Blitz-January-30-2024"]
[Site "Chess.com"]
[Date "2024.01.30"]
[Round "5"]
[White "agvega14"]
[Black "Massakru"]
[Result "0-1"]
[WhiteElo "2156"]
[BlackElo "2406"]
[TimeControl "180+1"]
[EndTime "8:57:25 PST"]
[Termination "Massakru won on time"]

1. e4 {[%clk 0:02:58.7]} 1... e5 {[%clk 0:03:00]} 2. Nf3 {[%clk 0:02:55.6]} 2...
Nc6 {[%clk 0:03:00.3]} 3. d4 {[%clk 0:02:54.9]} 3... exd4 {[%clk 0:03:01.2]} 4.
Bc4 {[%clk 0:02:55.2]} 4... Nf6 {[%clk 0:02:58.7]} 5. e5 {[%clk 0:02:55.2]} 5...
d5 {[%clk 0:02:58.7]} 6. Bb5 {[%clk 0:02:54.8]} 6... Ne4 {[%clk 0:02:58.7]} 7.
Nxd4 {[%clk 0:02:55.1]} 7... Bd7 {[%clk 0:02:58.6]} 8. Bxc6 {[%clk 0:02:54.8]}
8... bxc6 {[%clk 0:02:58.8]} 9. O-O {[%clk 0:02:55.5]} 9... Bc5 {[%clk
0:02:59.3]} 10. f3 {[%clk 0:02:54.8]} 10... Ng5 {[%clk 0:02:59.5]} 11. f4 {[%clk
0:02:55.3]} 11... Ne4 {[%clk 0:02:59.6]} 12. Be3 {[%clk 0:02:49.6]} 12... f6
{[%clk 0:02:59.5]} 13. Nd2 {[%clk 0:02:45.8]} 13... Nxd2 {[%clk 0:02:59]} 14.
Qxd2 {[%clk 0:02:45.7]} 14... O-O {[%clk 0:02:55.9]} 15. Nf3 {[%clk 0:02:21.8]}
15... Bxe3+ {[%clk 0:02:53.6]} 16. Qxe3 {[%clk 0:02:22.7]} 16... Bg4 {[%clk
0:02:43.8]} 17. e6 {[%clk 0:02:17.4]} 17... Qe7 {[%clk 0:02:25.5]} 18. Rae1
{[%clk 0:02:01.8]} 18... Bxf3 {[%clk 0:02:18.8]} 19. Rxf3 {[%clk 0:01:57.2]}
19... f5 {[%clk 0:02:19.2]} 20. Qd4 {[%clk 0:01:34.8]} 20... Rf6 {[%clk
0:02:18.1]} 21. Rg3 {[%clk 0:01:18.4]} 21... a6 {[%clk 0:02:12.3]} 22. b4 {[%clk
0:00:58]} 22... Re8 {[%clk 0:02:03.2]} 23. h3 {[%clk 0:00:47.7]} 23... g6 {[%clk
0:02:02.7]} 24. Rc3 {[%clk 0:00:30.4]} 24... Rxe6 {[%clk 0:01:56.5]} 25. Rxe6
{[%clk 0:00:29.8]} 25... Qxe6 {[%clk 0:01:56.7]} 26. Kh2 {[%clk 0:00:28]} 26...
Qd6 {[%clk 0:01:54.3]} 27. Re3 {[%clk 0:00:20.5]} 27... Re4 {[%clk 0:01:54.4]}
28. Rxe4 {[%clk 0:00:18.5]} 28... fxe4 {[%clk 0:01:54.8]} 29. Qe3 {[%clk
0:00:16.1]} 29... g5 {[%clk 0:01:51.8]} 30. g3 {[%clk 0:00:13.9]} 30... gxf4
{[%clk 0:01:52]} 31. gxf4 {[%clk 0:00:14.1]} 31... Kf7 {[%clk 0:01:49.1]} 32.
Qg3 {[%clk 0:00:13.6]} 32... d4 {[%clk 0:01:39.4]} 33. Qg5 {[%clk 0:00:12.5]}
33... Qf6 {[%clk 0:01:30.6]} 34. Qh5+ {[%clk 0:00:10.4]} 34... Kg7 {[%clk
0:01:29.8]} 35. Qg4+ {[%clk 0:00:10]} 35... Kh6 {[%clk 0:01:28.1]} 36. f5 {[%clk
0:00:06.8]} 36... Qe5+ {[%clk 0:01:18.4]} 37. Kg2 {[%clk 0:00:06.9]} 37... e3
{[%clk 0:01:12.3]} 38. Qh4+ {[%clk 0:00:04.4]} 38... Kg7 {[%clk 0:01:12.4]} 39.
Qg4+ {[%clk 0:00:04.5]} 39... Kf8 {[%clk 0:01:11.1]} 40. Kf1 {[%clk 0:00:04.7]}
40... c5 {[%clk 0:01:02]} 41. bxc5 {[%clk 0:00:04]} 41... Qxc5 {[%clk
0:01:02.3]} 42. f6 {[%clk 0:00:04]} 42... Qc4+ {[%clk 0:00:58.1]} 43. Kg1 {[%clk
0:00:03.5]} 43... Qg8 {[%clk 0:00:53.1]} 0-1

[Event "Early-Titled-Tuesday-Blitz-January-30-2024"]
[Site "Chess.com"]
[Date "2024.01.30"]
[Round "5"]
[White "Nemegejas"]
[Black "SahibSinghKnight"]
[Result "1-0"]
[WhiteElo "2862"]
[BlackElo "2658"]
[TimeControl "180+1"]
[EndTime "8:57:26 PST"]
[Termination "Nemegejas won on time"]

1. d4 {[%clk 0:03:00.9]} 1... d5 {[%clk 0:02:58.2]} 2. c4 {[%clk 0:03:01.3]}
2... e6 {[%clk 0:02:57.9]} 3. Nf3 {[%clk 0:03:01.2]} 3... c6 {[%clk 0:02:57]} 4.
Qc2 {[%clk 0:02:54.9]} 4... dxc4 {[%clk 0:02:51.4]} 5. Qxc4 {[%clk 0:02:53.6]}
5... b5 {[%clk 0:02:51.1]} 6. Qc2 {[%clk 0:02:53.1]} 6... Bb7 {[%clk 0:02:50.8]}
7. e4 {[%clk 0:02:52.5]} 7... Nd7 {[%clk 0:02:50.7]} 8. a4 {[%clk 0:02:48]} 8...
b4 {[%clk 0:02:38]} 9. a5 {[%clk 0:02:42.3]} 9... Rc8 {[%clk 0:02:32.8]} 10. Bc4
{[%clk 0:02:39.7]} 10... c5 {[%clk 0:02:24.8]} 11. d5 {[%clk 0:02:35.6]} 11...
exd5 {[%clk 0:02:24.5]} 12. exd5 {[%clk 0:02:25.3]} 12... Bd6 {[%clk 0:02:07.8]}
13. O-O {[%clk 0:02:24.3]} 13... Ne7 {[%clk 0:02:05.4]} 14. Bg5 {[%clk
0:02:21.2]} 14... O-O {[%clk 0:02:01.8]} 15. Re1 {[%clk 0:02:17.4]} 15... f6
{[%clk 0:01:57.4]} 16. Bh4 {[%clk 0:02:13.4]} 16... Kh8 {[%clk 0:01:39.4]} 17.
Nbd2 {[%clk 0:02:04.9]} 17... Ng6 {[%clk 0:01:24.2]} 18. Bg3 {[%clk 0:01:57.2]}
18... Nde5 {[%clk 0:01:18.3]} 19. a6 {[%clk 0:01:51]} 19... Ba8 {[%clk
0:01:01.5]} 20. Rad1 {[%clk 0:01:46.6]} 20... Qd7 {[%clk 0:00:24.4]} 21. b3
{[%clk 0:01:33.3]} 21... Rce8 {[%clk 0:00:21.6]} 22. Re3 {[%clk 0:01:22.4]}
22... Nxf3+ {[%clk 0:00:15.3]} 23. Nxf3 {[%clk 0:01:10.8]} 23... Rxe3 {[%clk
0:00:13.8]} 24. Bxd6 {[%clk 0:01:11.1]} 24... Rc3 {[%clk 0:00:10.1]} 25. Qxg6
{[%clk 0:00:59.9]} 25... hxg6 {[%clk 0:00:07.5]} 26. Bxf8 {[%clk 0:01:00.8]}
26... Qg4 {[%clk 0:00:04.7]} 27. h3 {[%clk 0:00:59.7]} 27... Qf5 {[%clk
0:00:04.3]} 28. Bxc5 {[%clk 0:00:59.6]} 28... Rxf3 {[%clk 0:00:03.3]} 29. gxf3
{[%clk 0:01:00.5]} 29... Qxf3 {[%clk 0:00:03.9]} 30. Rd3 {[%clk 0:01:00.9]}
30... Qf4 {[%clk 0:00:04.1]} 31. Bxa7 {[%clk 0:01:00.6]} 31... Qg5+ {[%clk
0:00:04.4]} 32. Kf1 {[%clk 0:00:59.9]} 32... Qf5 {[%clk 0:00:04.2]} 33. Bb8
{[%clk 0:00:53.4]} 33... Qe4 {[%clk 0:00:04.5]} 34. a7 {[%clk 0:00:52.8]} 34...
Qh1+ {[%clk 0:00:04.1]} 35. Ke2 {[%clk 0:00:53.7]} 35... Qe4+ {[%clk 0:00:04.7]}
36. Kd2 {[%clk 0:00:51.8]} 36... Qf5 {[%clk 0:00:04.2]} 37. Bg3 {[%clk
0:00:50.6]} 37... Qd7 {[%clk 0:00:03.9]} 38. d6 {[%clk 0:00:51.2]} 38... f5
{[%clk 0:00:02.4]} 39. Be6 {[%clk 0:00:48.3]} 1-0

[Event "Early-Titled-Tuesday-Blitz-January-30-2024"]
[Site "Chess.com"]
[Date "2024.01.30"]
[Round "5"]
[White "Pliukha_Mikhail"]
[Black "vladoboch"]
[Result "1-0"]
[WhiteElo "2770"]
[BlackElo "2484"]
[TimeControl "180+1"]
[EndTime "8:57:28 PST"]
[Termination "Pliukha_Mikhail won by resignation"]

1. e4 {[%clk 0:03:00.9]} 1... e5 {[%clk 0:03:00]} 2. Nf3 {[%clk 0:03:00.8]} 2...
Nc6 {[%clk 0:03:00.7]} 3. d4 {[%clk 0:03:01.7]} 3... exd4 {[%clk 0:03:00.8]} 4.
Bc4 {[%clk 0:03:02.6]} 4... Nf6 {[%clk 0:03:00.4]} 5. O-O {[%clk 0:03:03]} 5...
Nxe4 {[%clk 0:03:00.3]} 6. Re1 {[%clk 0:03:03.3]} 6... d5 {[%clk 0:03:00.8]} 7.
Nc3 {[%clk 0:03:02.2]} 7... dxc4 {[%clk 0:02:57]} 8. Rxe4+ {[%clk 0:03:01.1]}
8... Be6 {[%clk 0:02:47.1]} 9. Nxd4 {[%clk 0:03:02]} 9... Nxd4 {[%clk
0:02:40.2]} 10. Rxd4 {[%clk 0:03:02.9]} 10... Qf6 {[%clk 0:02:34.8]} 11. Be3
{[%clk 0:03:02.8]} 11... Bc5 {[%clk 0:02:22.1]} 12. Ne4 {[%clk 0:03:02.1]} 12...
Qe5 {[%clk 0:02:02.1]} 13. Nxc5 {[%clk 0:02:55.7]} 13... Qxc5 {[%clk 0:02:01.7]}
14. Qf3 {[%clk 0:02:24.2]} 14... O-O {[%clk 0:01:48]} 15. Rad1 {[%clk
0:02:07.8]} 15... Qb5 {[%clk 0:01:44.5]} 16. Qg3 {[%clk 0:02:01.7]} 16... Kh8
{[%clk 0:01:28.6]} 17. Rh4 {[%clk 0:02:00.1]} 17... c5 {[%clk 0:01:12.7]} 18.
Rh5 {[%clk 0:01:45.5]} 18... Rad8 {[%clk 0:01:08.4]} 19. Re1 {[%clk 0:01:29.9]}
19... Rd5 {[%clk 0:00:59.9]} 20. Rxd5 {[%clk 0:01:25.4]} 20... Bxd5 {[%clk
0:01:00.8]} 21. Qd6 {[%clk 0:01:24]} 21... Rg8 {[%clk 0:00:25.2]} 22. Qxd5
{[%clk 0:01:22.2]} 22... Qxb2 {[%clk 0:00:23.2]} 23. Qxc4 {[%clk 0:01:21.9]}
23... b6 {[%clk 0:00:22.5]} 24. h4 {[%clk 0:01:12.8]} 24... h6 {[%clk
0:00:20.9]} 25. Rd1 {[%clk 0:01:10.7]} 25... Qf6 {[%clk 0:00:16]} 26. g3 {[%clk
0:01:09.8]} 26... Qg6 {[%clk 0:00:11.8]} 27. Rd7 {[%clk 0:01:08.3]} 27... f5
{[%clk 0:00:08.4]} 28. Rxa7 {[%clk 0:01:07.4]} 28... Rd8 {[%clk 0:00:06.9]} 29.
Kh2 {[%clk 0:00:58.7]} 29... Qg4 {[%clk 0:00:02.7]} 30. Qxg4 {[%clk 0:00:57.7]}
30... fxg4 {[%clk 0:00:03.6]} 31. Rb7 {[%clk 0:00:55.5]} 31... Rd6 {[%clk
0:00:03.8]} 32. a4 {[%clk 0:00:53.4]} 32... Kg8 {[%clk 0:00:02.4]} 33. c4 {[%clk
0:00:53.3]} 33... Kh7 {[%clk 0:00:03]} 34. h5 {[%clk 0:00:48.3]} 34... Rc6
{[%clk 0:00:02]} 35. Bf4 {[%clk 0:00:48.2]} 35... Re6 {[%clk 0:00:02.1]} 36. Bc7
{[%clk 0:00:47.1]} 36... Re4 {[%clk 0:00:02.6]} 37. Bxb6 {[%clk 0:00:45.6]}
37... Rxc4 {[%clk 0:00:03.3]} 38. a5 {[%clk 0:00:46]} 38... Rb4 {[%clk
0:00:02.4]} 39. a6 {[%clk 0:00:44.8]} 39... c4 {[%clk 0:00:02.4]} 40. a7 {[%clk
0:00:45.1]} 40... Ra4 {[%clk 0:00:03.2]} 41. Bd4 {[%clk 0:00:45.1]} 1-0

[Event "Early-Titled-Tuesday-Blitz-January-30-2024"]
[Site "Chess.com"]
[Date "2024.01.30"]
[Round "5"]
[White "unclear15"]
[Black "Horokoskii"]
[Result "1/2-1/2"]
[WhiteElo "2392"]
[BlackElo "2157"]
[TimeControl "180+1"]
[EndTime "8:57:32 PST"]
[Termination "Game drawn by repetition"]

1. e4 {[%clk 0:02:59]} 1... e6 {[%clk 0:03:00.3]} 2. d4 {[%clk 0:02:58]} 2... d5
{[%clk 0:03:01.2]} 3. Nc3 {[%clk 0:02:56.9]} 3... Nf6 {[%clk 0:03:00.2]} 4. e5
{[%clk 0:02:56.6]} 4... Nfd7 {[%clk 0:02:59.7]} 5. f4 {[%clk 0:02:56.4]} 5... c5
{[%clk 0:02:59.8]} 6. Nf3 {[%clk 0:02:56.1]} 6... Nc6 {[%clk 0:02:56.9]} 7. Be3
{[%clk 0:02:56.2]} 7... a6 {[%clk 0:02:56.6]} 8. Qd2 {[%clk 0:02:55.4]} 8... b5
{[%clk 0:02:55.7]} 9. Be2 {[%clk 0:02:55.2]} 9... Qb6 {[%clk 0:02:50]} 10. a4
{[%clk 0:02:38.5]} 10... b4 {[%clk 0:02:44.1]} 11. Nd1 {[%clk 0:02:37.3]} 11...
a5 {[%clk 0:02:39.3]} 12. c3 {[%clk 0:02:27.6]} 12... cxd4 {[%clk 0:02:34.2]}
13. Nxd4 {[%clk 0:02:25.3]} 13... Nxd4 {[%clk 0:02:33.5]} 14. Bxd4 {[%clk
0:02:25.7]} 14... Bc5 {[%clk 0:02:32.5]} 15. Bb5 {[%clk 0:02:22.5]} 15... O-O
{[%clk 0:02:31.2]} 16. Bxd7 {[%clk 0:02:16.4]} 16... Bxd7 {[%clk 0:02:29.2]} 17.
Qe3 {[%clk 0:02:09.8]} 17... Bxd4 {[%clk 0:02:27.2]} 18. Qxd4 {[%clk 0:02:10.3]}
18... Rab8 {[%clk 0:02:22.9]} 19. Qxb6 {[%clk 0:02:04.5]} 19... Rxb6 {[%clk
0:02:23.8]} 20. Kd2 {[%clk 0:01:40.3]} 20... bxc3+ {[%clk 0:02:16.8]} 21. bxc3
{[%clk 0:01:41.1]} 21... Rfb8 {[%clk 0:02:12.6]} 22. Kc2 {[%clk 0:01:23.7]}
22... Rc8 {[%clk 0:02:10.7]} 23. Nb2 {[%clk 0:01:13.7]} 23... d4 {[%clk
0:01:55.9]} 24. c4 {[%clk 0:01:12.2]} 24... Bc6 {[%clk 0:01:42.8]} 25. Rhd1
{[%clk 0:01:02.3]} 25... Be4+ {[%clk 0:01:25.9]} 26. Kc1 {[%clk 0:01:01]} 26...
d3 {[%clk 0:01:23.6]} 27. Nxd3 {[%clk 0:00:55]} 27... Rxc4+ {[%clk 0:01:21.3]}
28. Kd2 {[%clk 0:00:53.6]} 28... Bxd3 {[%clk 0:00:53.6]} 29. Kxd3 {[%clk
0:00:53.1]} 29... Rbb4 {[%clk 0:00:54.2]} 30. Rac1 {[%clk 0:00:15.3]} 30... Rd4+
{[%clk 0:00:51.5]} 31. Kc3 {[%clk 0:00:13.7]} 31... Rdc4+ {[%clk 0:00:48.7]} 32.
Kd3 {[%clk 0:00:11.2]} 32... Rxc1 {[%clk 0:00:48.6]} 33. Rxc1 {[%clk 0:00:11]}
33... g6 {[%clk 0:00:49.5]} 34. Rc4 {[%clk 0:00:10.2]} 34... Rb2 {[%clk
0:00:45.7]} 35. Rc2 {[%clk 0:00:09.9]} 35... Rb4 {[%clk 0:00:40.9]} 36. Rc4
{[%clk 0:00:09.3]} 36... Rb2 {[%clk 0:00:41.4]} 37. Rc2 {[%clk 0:00:08.6]} 37...
Rb4 {[%clk 0:00:41.1]} 38. Rc4 {[%clk 0:00:08.5]} 1/2-1/2

[Event "Early-Titled-Tuesday-Blitz-January-30-2024"]
[Site "Chess.com"]
[Date "2024.01.30"]
[Round "5"]
[White "invisible_s0ul"]
[Black "deepfear"]
[Result "1-0"]
[WhiteElo "2240"]
[BlackElo "1933"]
[TimeControl "180+1"]
[EndTime "8:57:32 PST"]
[Termination "invisible_s0ul won on time"]

1. e4 {[%clk 0:02:53.9]} 1... c5 {[%clk 0:02:59.3]} 2. Nf3 {[%clk 0:02:53.5]}
2... g6 {[%clk 0:02:56.9]} 3. c3 {[%clk 0:02:50.9]} 3... d5 {[%clk 0:02:51.2]}
4. e5 {[%clk 0:02:49.9]} 4... Bg4 {[%clk 0:02:36.2]} 5. d4 {[%clk 0:02:46.3]}
5... e6 {[%clk 0:02:21.4]} 6. Bb5+ {[%clk 0:02:35.5]} 6... Nc6 {[%clk
0:02:12.7]} 7. O-O {[%clk 0:02:28.6]} 7... cxd4 {[%clk 0:01:59.5]} 8. cxd4
{[%clk 0:02:25.4]} 8... Ne7 {[%clk 0:01:55.8]} 9. Bg5 {[%clk 0:02:22.7]} 9... h6
{[%clk 0:01:54.4]} 10. Bf6 {[%clk 0:02:20.5]} 10... Rg8 {[%clk 0:01:41]} 11. h3
{[%clk 0:02:09.1]} 11... Bxf3 {[%clk 0:01:35]} 12. Qxf3 {[%clk 0:02:10]} 12...
a6 {[%clk 0:01:33.8]} 13. Bxc6+ {[%clk 0:02:09.6]} 13... bxc6 {[%clk 0:01:30]}
14. Rc1 {[%clk 0:02:00.4]} 14... Qb6 {[%clk 0:01:26.1]} 15. Qc3 {[%clk
0:01:52.1]} 15... Rc8 {[%clk 0:01:23.2]} 16. b4 {[%clk 0:01:44.5]} 16... Nf5
{[%clk 0:01:15.5]} 17. Rd1 {[%clk 0:01:19]} 17... Qxb4 {[%clk 0:01:02.5]} 18.
Qd3 {[%clk 0:01:13.8]} 18... Qb5 {[%clk 0:00:49.2]} 19. Qf3 {[%clk 0:01:03.4]}
19... Bg7 {[%clk 0:00:29]} 20. Nc3 {[%clk 0:00:59.7]} 20... Qa5 {[%clk 0:00:17]}
21. Rab1 {[%clk 0:00:53.2]} 21... Bxf6 {[%clk 0:00:15.8]} 22. exf6 {[%clk
0:00:53.3]} 22... Qd8 {[%clk 0:00:14.9]} 23. Kh1 {[%clk 0:00:30.5]} 23... g5
{[%clk 0:00:08.7]} 24. Rb7 {[%clk 0:00:21.5]} 24... Rg6 {[%clk 0:00:04.1]} 25.
Qd3 {[%clk 0:00:16.3]} 25... Qxf6 {[%clk 0:00:03.6]} 26. Qxa6 {[%clk 0:00:16.9]}
26... Nxd4 {[%clk 0:00:01.1]} 27. Rxf7 {[%clk 0:00:11.5]} 1-0

[Event "Early-Titled-Tuesday-Blitz-January-30-2024"]
[Site "Chess.com"]
[Date "2024.01.30"]
[Round "5"]
[White "Sadykov_Ramil"]
[Black "snowlord"]
[Result "0-1"]
[WhiteElo "2609"]
[BlackElo "2853"]
[TimeControl "180+1"]
[EndTime "8:57:33 PST"]
[Termination "snowlord won by resignation"]

1. e4 {[%clk 0:03:00.9]} 1... Nf6 {[%clk 0:03:00.1]} 2. e5 {[%clk 0:02:54.4]}
2... Nd5 {[%clk 0:03:00.5]} 3. d4 {[%clk 0:02:53.4]} 3... d6 {[%clk 0:03:00.9]}
4. c4 {[%clk 0:02:54]} 4... Nb6 {[%clk 0:03:00.2]} 5. f4 {[%clk 0:02:54.6]} 5...
dxe5 {[%clk 0:02:58.9]} 6. fxe5 {[%clk 0:02:54.8]} 6... c5 {[%clk 0:02:59.8]} 7.
d5 {[%clk 0:02:48.3]} 7... g6 {[%clk 0:03:00.4]} 8. Nf3 {[%clk 0:02:28.5]} 8...
Bg7 {[%clk 0:03:00.9]} 9. Nc3 {[%clk 0:02:23.1]} 9... Bg4 {[%clk 0:03:00.7]} 10.
Bf4 {[%clk 0:02:22.5]} 10... O-O {[%clk 0:03:00]} 11. h3 {[%clk 0:02:19.9]}
11... Bxf3 {[%clk 0:02:53.3]} 12. Qxf3 {[%clk 0:02:20.8]} 12... N8d7 {[%clk
0:02:53.9]} 13. Qe4 {[%clk 0:02:13.3]} 13... e6 {[%clk 0:02:54.2]} 14. O-O-O
{[%clk 0:01:53.4]} 14... exd5 {[%clk 0:02:54]} 15. cxd5 {[%clk 0:01:53.5]} 15...
Qe8 {[%clk 0:02:53.5]} 16. Bb5 {[%clk 0:01:10.4]} 16... Bxe5 {[%clk 0:02:49.8]}
17. Rhe1 {[%clk 0:01:01.6]} 17... Bxc3 {[%clk 0:02:24]} 18. bxc3 {[%clk
0:00:53.5]} 18... Qxe4 {[%clk 0:02:24.7]} 19. Rxe4 {[%clk 0:00:53.9]} 19... Nf6
{[%clk 0:02:25.4]} 20. Re5 {[%clk 0:00:49.3]} 20... a6 {[%clk 0:02:25.9]} 21.
Be2 {[%clk 0:00:45.9]} 21... Rfe8 {[%clk 0:02:12.3]} 22. Bf3 {[%clk 0:00:41.5]}
22... Nbd7 {[%clk 0:01:51.1]} 23. Rxe8+ {[%clk 0:00:31.8]} 23... Rxe8 {[%clk
0:01:51.8]} 24. d6 {[%clk 0:00:22.3]} 24... Ne4 {[%clk 0:01:52.3]} 25. Kc2
{[%clk 0:00:20.5]} 25... b5 {[%clk 0:01:34.1]} 26. a4 {[%clk 0:00:20.2]} 26...
b4 {[%clk 0:01:08.6]} 27. cxb4 {[%clk 0:00:18.7]} 27... cxb4 {[%clk 0:01:09.4]}
28. a5 {[%clk 0:00:18.7]} 28... Rc8+ {[%clk 0:01:08.7]} 29. Kb3 {[%clk
0:00:17.7]} 29... Nc3 {[%clk 0:00:35.1]} 30. Rd4 {[%clk 0:00:16.9]} 30... Nb5
{[%clk 0:00:27.9]} 31. Rxb4 {[%clk 0:00:14.9]} 31... Nc5+ {[%clk 0:00:28.5]} 32.
Ka2 {[%clk 0:00:13.6]} 32... Nd3 {[%clk 0:00:23.6]} 33. d7 {[%clk 0:00:10.6]}
33... Nxb4+ {[%clk 0:00:23]} 34. Kb3 {[%clk 0:00:10.4]} 34... Rd8 {[%clk
0:00:23.5]} 35. Bc6 {[%clk 0:00:10.6]} 35... Nxc6 {[%clk 0:00:23.3]} 0-1

[Event "Early-Titled-Tuesday-Blitz-January-30-2024"]
[Site "Chess.com"]
[Date "2024.01.30"]
[Round "5"]
[White "CristianS27"]
[Black "shirovin"]
[Result "1-0"]
[WhiteElo "2554"]
[BlackElo "2052"]
[TimeControl "180+1"]
[EndTime "8:57:33 PST"]
[Termination "CristianS27 won on time"]

1. e4 {[%clk 0:00:35.1]} 1... c5 {[%clk 0:02:56.6]} 2. Nf3 {[%clk 0:00:34.3]}
2... d6 {[%clk 0:02:56.3]} 3. d4 {[%clk 0:00:34.4]} 3... cxd4 {[%clk 0:02:57]}
4. Nxd4 {[%clk 0:00:35.3]} 4... Nf6 {[%clk 0:02:56.9]} 5. Nc3 {[%clk 0:00:35.9]}
5... a6 {[%clk 0:02:56]} 6. Be3 {[%clk 0:00:36.6]} 6... e5 {[%clk 0:02:54.9]} 7.
Nf3 {[%clk 0:00:36.8]} 7... Be7 {[%clk 0:02:47.7]} 8. Bc4 {[%clk 0:00:36.7]}
8... O-O {[%clk 0:02:45.8]} 9. O-O {[%clk 0:00:37.3]} 9... Be6 {[%clk
0:02:41.7]} 10. Bb3 {[%clk 0:00:37.8]} 10... Nc6 {[%clk 0:02:41]} 11. Qe2 {[%clk
0:00:38.3]} 11... Na5 {[%clk 0:02:33.2]} 12. Rfd1 {[%clk 0:00:38.2]} 12... Nxb3
{[%clk 0:02:31.3]} 13. axb3 {[%clk 0:00:36.7]} 13... Qc7 {[%clk 0:02:29.9]} 14.
Bg5 {[%clk 0:00:36.1]} 14... Rac8 {[%clk 0:02:23]} 15. Bxf6 {[%clk 0:00:35]}
15... Bxf6 {[%clk 0:02:20.7]} 16. Rac1 {[%clk 0:00:35.9]} 16... b5 {[%clk
0:01:58.2]} 17. Nd5 {[%clk 0:00:35.8]} 17... Bxd5 {[%clk 0:01:55.9]} 18. Rxd5
{[%clk 0:00:36.7]} 18... Be7 {[%clk 0:01:56]} 19. c3 {[%clk 0:00:36.6]} 19... g6
{[%clk 0:01:55.6]} 20. Rcd1 {[%clk 0:00:36.6]} 20... f5 {[%clk 0:01:53.2]} 21.
exf5 {[%clk 0:00:33.1]} 21... Rxf5 {[%clk 0:01:51.4]} 22. Nd2 {[%clk 0:00:29.7]}
22... Rcf8 {[%clk 0:01:49.1]} 23. f3 {[%clk 0:00:28.8]} 23... Qb6+ {[%clk
0:01:44.4]} 24. Qf2 {[%clk 0:00:27]} 24... Qb7 {[%clk 0:01:38.3]} 25. Ne4 {[%clk
0:00:26]} 25... Rd8 {[%clk 0:01:30.9]} 26. Nxd6 {[%clk 0:00:21.4]} 26... Bxd6
{[%clk 0:01:24.2]} 27. Rxd6 {[%clk 0:00:22.3]} 27... Rxd6 {[%clk 0:01:24.1]} 28.
Rxd6 {[%clk 0:00:23.2]} 28... e4 {[%clk 0:01:22]} 29. Qd4 {[%clk 0:00:20.1]}
29... exf3 {[%clk 0:00:40.4]} 30. Rd8+ {[%clk 0:00:19.2]} 30... Rf8 {[%clk
0:00:35.7]} 31. Rxf8+ {[%clk 0:00:19.3]} 31... Kxf8 {[%clk 0:00:34.8]} 32. Qh8+
{[%clk 0:00:20.2]} 1-0

[Event "Early-Titled-Tuesday-Blitz-January-30-2024"]
[Site "Chess.com"]
[Date "2024.01.30"]
[Round "5"]
[White "only_strong_moves"]
[Black "GoValya"]
[Result "1-0"]
[WhiteElo "2523"]
[BlackElo "2309"]
[TimeControl "180+1"]
[EndTime "8:57:33 PST"]
[Termination "only_strong_moves won by resignation"]

1. d4 {[%clk 0:03:00.9]} 1... d5 {[%clk 0:02:57.9]} 2. Nc3 {[%clk 0:02:59.3]}
2... g6 {[%clk 0:02:53.9]} 3. Bf4 {[%clk 0:02:55.4]} 3... a6 {[%clk 0:02:51.4]}
4. e3 {[%clk 0:02:48.4]} 4... Bg7 {[%clk 0:02:51.1]} 5. h4 {[%clk 0:02:45.9]}
5... h5 {[%clk 0:02:49.6]} 6. Nf3 {[%clk 0:02:45.2]} 6... Nf6 {[%clk 0:02:49.6]}
7. Ne5 {[%clk 0:02:44.5]} 7... Nbd7 {[%clk 0:02:46]} 8. Bd3 {[%clk 0:02:39.2]}
8... Nxe5 {[%clk 0:02:45.6]} 9. Bxe5 {[%clk 0:02:37.5]} 9... O-O {[%clk
0:02:41.7]} 10. Qd2 {[%clk 0:02:34.9]} 10... c5 {[%clk 0:02:31.6]} 11. dxc5
{[%clk 0:02:34.6]} 11... Be6 {[%clk 0:02:26.3]} 12. Ne2 {[%clk 0:02:13.9]} 12...
Ne4 {[%clk 0:02:12.2]} 13. Bxe4 {[%clk 0:02:10]} 13... Bxe5 {[%clk 0:02:12.2]}
14. Bf3 {[%clk 0:02:01.7]} 14... Bxb2 {[%clk 0:02:10.9]} 15. Rb1 {[%clk
0:01:57.2]} 15... Be5 {[%clk 0:02:08.1]} 16. Nd4 {[%clk 0:01:54.5]} 16... Bxd4
{[%clk 0:01:57.4]} 17. Qxd4 {[%clk 0:01:53.4]} 17... Qa5+ {[%clk 0:01:51.4]} 18.
Kf1 {[%clk 0:01:42.3]} 18... Qxa2 {[%clk 0:01:46.7]} 19. Rxb7 {[%clk 0:01:36.9]}
19... Rab8 {[%clk 0:01:24]} 20. Rb6 {[%clk 0:01:26.5]} 20... Qxc2 {[%clk
0:01:14]} 21. Kg1 {[%clk 0:01:23.7]} 21... Rbc8 {[%clk 0:01:00.9]} 22. Kh2
{[%clk 0:01:09.8]} 22... Qxf2 {[%clk 0:00:52]} 23. Rc1 {[%clk 0:01:01.9]} 23...
a5 {[%clk 0:00:41.4]} 24. c6 {[%clk 0:00:52.1]} 24... a4 {[%clk 0:00:37.7]} 25.
Rb2 {[%clk 0:00:46.2]} 25... Rxc6 {[%clk 0:00:18.3]} 26. Rxc6 {[%clk 0:00:34.6]}
26... Qe1 {[%clk 0:00:17.1]} 27. Rb7 {[%clk 0:00:31.3]} 27... a3 {[%clk
0:00:15.4]} 28. Ra7 {[%clk 0:00:18]} 28... Rb8 {[%clk 0:00:08.1]} 29. Rxe6
{[%clk 0:00:15.8]} 29... Rb4 {[%clk 0:00:07.3]} 30. Ra8+ {[%clk 0:00:15.6]} 1-0